bitfinex/quotes_ETHUSD_20251017
["timestamp","ask_amount","ask_price","bid_price","bid_amount"]
[1760676921126,9.583,3921.1,3921.0,0.49705431]
[1760676921326,14.514,3921.1,3921.0,0.49705431]
[1760676921526,17.594,3921.1,3921.0,0.49705431]
[1760676921736,9.583,3921.1,3921.0,0.49705431]
[1760676921928,11.746231,3921.1,3921.0,0.49705431]
[1760676922731,9.583,3921.1,3921.0,0.49705431]
[1760676923826,15.808329,3921.1,3921.0,0.49705431]
[1760676924031,15.032644,3921.1,3921.0,0.49705431]
[1760676925438,8.032644,3921.1,3921.0,0.49705431]
[1760676928826,2.583,3921.1,3921.0,0.49705431]
[1760676929116,4.864,3921.1,3921.0,0.49705431]
[1760676929338,2.583,3921.1,3921.0,0.49705431]
[1760676929614,9.786121,3921.1,3921.0,0.49705431]
[1760676929956,9.786121,3921.1,3921.0,0.02275431]
[1760676930656,2.583,3921.1,3921.0,0.46815431]
[1760676936326,24.739881,3921.1,3921.0,0.02275431]
[1760676936545,19.363619,3921.1,3921.0,0.02275431]
[1760676936867,19.71428525,3921.1,3921.0,0.02275431]
[1760676937072,20.15758525,3921.1,3921.0,0.02275431]
[1760676937547,21.55859225,3921.1,3921.0,0.02275431]
[1760676938029,14.59546725,3921.1,3921.0,0.02275431]
[1760676938231,12.574765,3921.1,3921.0,0.02275431]
[1760676938441,12.725321,3921.1,3921.0,0.02275431]
[1760676939252,14.83453043,3921.1,3921.0,0.02275431]
[1760676939451,32.06390243,3921.1,3921.0,0.02275431]
[1760676939650,27.51744,3921.1,3921.0,0.02275431]
[1760676939948,11.39702026,3921.1,3921.0,0.02275431]
[1760676940165,2.159682,3921.1,3921.0,0.02275431]
[1760676940318,11.974783,3921.1,3921.0,0.02275431]
[1760676940725,12.418083,3921.1,3921.0,0.02275431]
[1760676940966,11.974783,3921.1,3921.0,0.02275431]
[1760676941123,7.819483,3921.1,3921.0,0.02275431]
[1760676941323,2.581,3921.1,3921.0,0.02275431]
[1760676941544,4.818927,3921.1,3921.0,0.02275431]
[1760676941854,2.581,3921.1,3921.0,0.46815431]
[1760676942426,7.17397504,3921.1,3921.0,0.02275431]
[1760676943348,9.34209104,3921.1,3921.0,0.02275431]
[1760676943748,2.98111304,3921.1,3921.0,0.02275431]
[1760676944062,2.98111304,3921.1,3921.0,0.46815431]
[1760676944358,2.98111304,3921.1,3921.0,0.02275431]
[1760676944522,12.47480804,3921.1,3921.0,0.02275431]
[1760676944726,11.79463004,3921.1,3921.0,0.02275431]
[1760676944926,2.98111304,3921.1,3921.0,0.02275431]
[1760676946830,18.80700204,3921.1,3921.0,0.02275431]
[1760676947246,17.37568104,3921.1,3921.0,0.02275431]
[1760676947446,16.95664704,3921.1,3921.0,0.02275431]
[1760676947780,5.65123404,3921.1,3921.0,0.02275431]
[1760676948933,6.30478104,3921.1,3921.0,0.02275431]
[1760676949339,2.98111304,3921.1,3921.0,0.02275431]
[1760676950041,2.581,3921.1,3921.0,0.46815431]
[1760676950349,2.581,3921.1,3921.0,1.23924569]
[1760676950547,2.581,3921.1,3921.0,4.42321549]
[1760676950751,10.204516,3922.4,3921.1,0.6336]
[1760676950952,0.4389,3922.5,3921.5,4.69220943]
[1760676950953,11.0297,3922.2,3921.5,4.69220943]
[1760676951370,2.58,3922.3,3921.2,2.75301415]
[1760676951371,4.600198,3922.1,3921.8,4.69220943]
[1760676951559,2.0,3922.2,3921.9,0.4518]
[1760676952237,2.0,3922.2,3921.6,0.6336]
[1760676952442,2.0,3922.2,3921.6,1.0854]
[1760676953463,2.98001611,3922.3,3921.6,1.46636887]
[1760676953805,2.98001611,3922.3,3922.1,0.2028]
[1760676954009,2.98001611,3922.3,3921.7,0.6546]
[1760676954187,2.98001611,3922.3,3921.7,0.2028]
[1760676954505,2.98001611,3922.3,3921.8,0.4518]
[1760676954678,2.98001611,3922.3,3921.9,0.4518]
[1760676954987,2.98001611,3922.3,3921.7,0.2028]
[1760676960101,2.98001611,3922.3,3921.6,3.63537057]
[1760676960102,0.4358,3922.2,3921.6,0.6336]
[1760676960400,3.23015,3922.0,3921.1,0.2028]
[1760676960561,2.584,3921.9,3921.2,0.4518]
[1760676961102,2.584,3921.9,3921.2,1.20240425]
[1760676961300,2.584,3921.9,3921.2,0.4518]
[1760676961471,2.094,3921.8,3921.2,0.4518]
[1760676961667,2.094,3921.8,3921.2,1.728]
[1760676961871,2.091445,3921.8,3921.2,1.728]
[1760676962571,2.091445,3921.8,3921.1,1.9308]
[1760676962996,2.091445,3921.8,3921.1,2.75307724]
[1760676963168,2.091445,3921.8,3921.1,1.9308]
[1760676963375,0.4414,3921.8,3921.0,0.02275431]
[1760676963884,0.40007558,3921.7,3921.0,0.02275431]
[1760676964489,0.40007558,3921.7,3921.1,0.66310304]
[1760676964669,0.40007558,3921.7,3921.2,2.5502335]
[1760676964869,0.40007558,3921.7,3921.3,0.4348]
[1760676965464,0.40007558,3921.7,3921.1,0.2028]
[1760676965891,0.40007558,3921.7,3921.2,0.4348]
[1760676966093,0.40007558,3921.7,3921.3,2.98495383]
[1760676966294,0.40007558,3921.7,3921.4,0.4348]
[1760676966891,0.40007558,3921.7,3921.3,0.6336]
[1760676967202,0.40007558,3921.7,3921.3,1.0684]
[1760676968118,0.40007558,3921.7,3921.3,3.61857465]
[1760676968416,0.40007558,3921.7,3921.4,2.5501085]
[1760676968598,2.753152,3922.4,3921.7,0.6336]
[1760676968804,2.582,3922.3,3921.7,0.6336]
[1760676969033,0.001,3922.7,3921.7,0.6336]
[1760676969180,0.001,3922.7,3921.8,0.6336]
[1760676969376,0.561,3922.6,3922.2,2.54958552]
[1760676969588,0.561,3922.6,3922.3,2.82995953]
[1760676969869,0.561,3922.6,3922.3,2.80446429]
[1760676970067,0.561,3922.6,3922.4,0.02549459]
[1760676970269,0.561,3922.6,3922.5,0.4348]
[1760676970705,0.561,3922.6,3922.5,2.54939451]
[1760676971008,0.561,3922.6,3922.5,2.98419451]
[1760676971211,0.561,3922.6,3922.5,5.52772552]
[1760676971506,0.561,3922.6,3922.5,5.96252552]
[1760676974813,0.001,3922.7,3922.6,4.91092952]
[1760676975105,0.001,3922.7,3922.6,5.37122281]
[1760676975291,0.001,3922.7,3922.6,5.34572952]
[1760676975497,0.001,3922.7,3922.6,13.41314805]
[1760676975908,1.3676,3923.9,3923.1,0.6336]
[1760676975909,0.001,3923.9,3923.1,0.6336]
[1760676976112,0.001,3923.9,3923.4,5.0887097]
[1760676976487,0.001,3923.9,3923.4,5.5235097]
[1760676979546,0.001,3923.9,3923.4,18.76975914]
[1760676979826,0.001,3923.9,3923.4,19.91208116]
[1760676980032,0.001,3923.9,3923.4,20.03928116]
[1760676980191,0.001,3923.9,3923.8,3.18214987]
[1760676980517,0.001,3923.9,3923.8,5.06226689]
[1760676980721,0.001,3923.9,3923.8,6.21551241]
[1760676981019,0.001,3923.9,3923.8,6.31768132]
[1760676981826,0.168,3925.1,3923.8,6.31768132]
[1760676981827,0.168,3925.1,3924.7,3.18156544]
[1760676981993,0.168,3925.1,3924.7,4.93504509]
[1760676982408,0.168,3925.1,3924.7,5.37646544]
[1760676982618,0.168,3925.1,3924.7,7.52263298]
[1760676984218,0.168,3925.1,3924.7,4.50776754]
[1760676984421,0.4284,3924.8,3924.7,2.3616]
[1760676984813,0.4284,3924.8,3923.8,0.71889992]
[1760676985032,0.4274,3924.7,3923.8,0.10216891]
[1760676985437,0.4274,3924.7,3923.0,0.1272]
[1760676985438,0.2219,3923.9,3923.0,0.1272]
[1760676985637,1.4874,3923.8,3923.0,2.1554]
[1760676985821,0.4254,3923.7,3922.5,0.1272]
[1760676986022,0.4254,3923.7,3922.5,0.89386636]
[1760676986235,0.4254,3923.6,3922.7,1.728]
[1760676986434,1.062,3923.8,3922.9,1.728]
[1760676986749,0.4254,3923.5,3923.0,1.728]
[1760676986955,1.062,3923.8,3923.1,0.65909004]
[1760676987151,1.4874,3923.8,3923.1,0.6336]
[1760676987314,1.4874,3923.8,3922.8,0.51711959]
[1760676987514,0.4254,3923.7,3923.1,2.3616]
[1760676987716,1.062,3923.8,3923.4,0.6336]
[1760676987949,1.062,3923.8,3923.5,1.728]
[1760676988137,1.4874,3923.8,3923.5,1.728]
[1760676988640,1.062,3923.8,3923.2,0.6336]
[1760676988836,0.4254,3923.7,3923.3,0.25253]
[1760676989043,0.4254,3923.7,3923.2,0.6336]
[1760676989225,0.4254,3923.6,3923.4,0.6336]
[1760676989631,0.4254,3923.6,3923.1,2.3616]
[1760676989825,1.062,3923.8,3923.4,2.54879989]
[1760676990017,1.062,3923.8,3923.5,1.728]
[1760676990226,1.062,3923.8,3923.7,3.18221482]
[1760676990426,1.062,3923.8,3923.7,4.91021482]
[1760676990633,1.062,3923.8,3923.7,2.3616]
[1760676991729,1.062,3923.8,3923.7,4.91021482]
[1760676992775,1.062,3923.8,3923.7,2.3616]
[1760676992925,1.5026,3923.8,3923.7,2.3616]
[1760676993763,1.5026,3923.8,3923.4,0.002]
[1760676993764,1.062,3923.8,3923.4,0.002]
[1760676993974,1.5026,3923.8,3923.4,0.002]
[1760676994178,1.65296,3923.8,3923.4,0.002]
[1760676995367,1.5026,3923.8,3923.4,0.002]
[1760677000276,0.4406,3923.7,3923.4,0.002]
[1760677000766,0.4406,3923.6,3923.4,0.002]
[1760677001798,1.062,3923.8,3923.4,0.002]
[1760677001993,0.001,3923.9,3923.7,2.54855481]
[1760677002180,1.799,3923.9,3923.8,0.50972996]
[1760677002598,1.799,3923.9,3923.8,3.05827983]
[1760677003793,1.799,3923.9,3923.8,3.64904987]
[1760677005262,1.799,3923.9,3923.8,5.37704987]
[1760677006483,0.001,3923.9,3923.8,5.37704987]
[1760677006688,0.001,3923.9,3923.8,5.50424987]
[1760677008495,0.001,3923.9,3923.8,5.6064334]
[1760677010230,0.001,3923.9,3923.8,6.42194074]
[1760677012437,0.001,3923.9,3923.8,3.27929087]
[1760677012637,0.001,3923.9,3923.8,4.3787334]
[1760677012835,0.001,3923.9,3923.8,5.0123334]
[1760677013135,0.001,3923.9,3923.8,5.4548334]
[1760677013350,0.001,3923.9,3923.8,5.0123334]
[1760677020375,0.6504,3923.9,3923.8,2.46378353]
[1760677020671,0.6504,3923.9,3923.8,4.91014987]
[1760677021320,0.6504,3923.9,3923.8,2.3616]
[1760677021742,0.6504,3923.9,3923.8,4.91014987]
[1760677022058,0.001,3923.9,3923.8,4.91014987]
[1760677022624,0.4305,3923.9,3923.8,4.91014987]
[1760677028677,0.4305,3923.9,3923.8,2.3616]
[1760677028877,0.4305,3923.9,3923.8,1.728]
[1760677029350,0.4305,3923.9,3923.8,1.73]
[1760677029852,12.11057,3923.9,3923.8,0.002]
[1760677030047,4.236985,3923.9,3923.8,0.002]
[1760677030296,0.4305,3923.9,3923.8,0.002]
[1760677030451,3.081944,3923.9,3923.8,0.002]
[1760677030979,0.4305,3923.9,3923.8,0.002]
[1760677031350,0.001,3923.9,3923.8,1.73]
[1760677031683,0.4305,3923.9,3923.8,0.002]
[1760677032069,0.57503,3923.9,3923.8,0.002]
[1760677033274,0.4305,3923.9,3923.8,0.002]
[1760677034584,4.801641,3923.9,3923.8,0.002]
[1760677035203,0.4305,3923.9,3923.8,0.002]
[1760677035783,0.001,3923.9,3923.8,0.002]
[1760677035989,0.4305,3923.9,3923.8,0.002]
[1760677036509,2.7665,3923.9,3923.8,0.002]
[1760677036906,2.337,3923.9,3923.8,0.002]
[1760677038185,2.337,3923.9,3923.8,2.80561034]
[1760677038786,0.001,3923.9,3923.8,5.64021034]
[1760677041521,0.001,3923.9,3923.8,10.32334362]
[1760677045400,0.001,3923.9,3923.8,15.0064769]
[1760677045587,0.001,3923.9,3923.8,15.1336769]
[1760677045786,0.001,3923.9,3923.8,10.45054362]
[1760677046203,0.001,3924.3,3924.2,3.18189009]
[1760677046519,0.001,3924.3,3924.2,9.72022337]
[1760677046684,0.001,3924.3,3924.2,10.17932337]
[1760677051418,0.001,3924.3,3924.2,9.72022337]
[1760677051744,0.001,3924.3,3924.2,10.17932337]
[1760677051942,0.001,3924.3,3924.2,11.59991551]
[1760677054110,0.001,3924.3,3924.2,11.14081551]
[1760677054741,0.001,3924.3,3924.2,11.59991551]
[1760677058129,0.001,3924.3,3924.2,11.14081551]
[1760677059254,0.001,3924.3,3924.2,11.59991551]
[1760677062359,0.001,3924.7,3924.6,3.18163037]
[1760677062542,0.001,3924.7,3924.6,12.57337723]
[1760677062742,0.001,3924.7,3924.6,10.05186365]
[1760677063548,0.4294,3925.7,3925.1,4.90930579]
[1760677063739,0.39965778,3925.9,3925.1,9.59243907]
[1760677064065,0.4304,3925.6,3925.1,9.84749954]
[1760677064669,0.001,3925.6,3925.1,9.84749954]
[1760677064844,0.4294,3925.5,3925.1,14.53063282]
[1760677066138,0.001,3925.6,3925.1,14.53063282]
[1760677066467,0.001,3925.6,3925.1,14.78435481]
[1760677066649,0.001,3925.6,3925.1,15.43405481]
[1760677067354,0.001,3925.6,3925.1,15.30753282]
[1760677067680,0.001,3925.6,3925.1,14.65783282]
[1760677067838,0.4294,3925.5,3925.1,9.97469954]
[1760677068860,0.001,3925.6,3925.1,15.11693282]
[1760677070175,0.001,3925.6,3925.1,15.30753282]
[1760677071487,0.001,3925.6,3925.1,14.84843282]
[1760677072379,0.001,3925.6,3925.1,14.65783282]
[1760677072580,0.4304,3925.6,3925.1,14.65783282]
[1760677074607,0.4304,3925.2,3925.1,14.53063282]
[1760677074891,0.4304,3925.2,3925.1,9.84749954]
[1760677075397,0.001,3925.2,3925.1,14.53063282]
[1760677076188,0.001,3925.2,3925.1,14.65783282]
[1760677076789,0.4304,3925.2,3925.1,4.90930579]
[1760677077097,0.4304,3925.2,3925.1,7.04473328]
[1760677077298,0.4304,3925.2,3925.1,6.41113328]
[1760677077602,0.4304,3925.2,3925.1,7.04473328]
[1760677077970,0.4304,3925.2,3925.1,9.59243907]
[1760677079675,0.4304,3925.2,3925.1,7.04473328]
[1760677080720,0.4304,3925.2,3925.1,6.41113328]
[1760677080941,0.4304,3925.2,3924.8,0.002]
[1760677081086,0.2283,3924.9,3924.8,0.002]
[1760677081413,16.774801,3924.9,3924.8,0.002]
[1760677081714,7.1147481,3924.9,3924.8,0.002]
[1760677081871,3.2317,3924.9,3924.8,0.002]
[1760677082072,0.6557,3924.9,3924.8,0.002]
[1760677082891,0.6557,3924.9,3924.8,0.6356]
[1760677083193,0.6557,3924.9,3924.8,3.18350052]
[1760677083395,0.001,3925.2,3924.8,0.002]
[1760677083576,0.001,3925.2,3925.1,0.6336]
[1760677084197,0.4228,3925.2,3925.1,0.6336]
[1760677084502,0.4228,3925.2,3924.8,0.002]
[1760677084742,0.4228,3925.2,3925.0,0.6336]
[1760677085004,0.6557,3925.1,3925.0,0.6336]
[1760677087308,0.2269,3925.1,3925.0,3.1813707]
[1760677087513,0.001,3925.2,3925.0,3.1813707]
[1760677087818,0.4288,3925.1,3925.0,0.6336]
[1760677089343,0.001,3925.2,3925.0,3.18136267]
[1760677090399,0.001,3925.2,3925.1,3.18130579]
[1760677091411,0.001,3925.2,3925.1,8.79865639]
[1760677091632,0.001,3925.2,3925.1,6.2509506]
[1760677092031,0.001,3925.2,3925.1,9.93351707]
[1760677092245,0.001,3925.2,3925.1,10.56841707]
[1760677092403,0.001,3925.2,3925.1,10.12411707]
[1760677092814,0.001,3925.2,3925.1,10.56841707]
[1760677093622,0.001,3925.2,3925.1,10.12411707]
[1760677093829,0.001,3925.2,3925.1,12.29641707]
[1760677095324,0.001,3925.2,3925.1,12.42361707]
[1760677096730,0.001,3925.2,3925.1,13.18973132]
[1760677098632,0.001,3925.2,3925.1,12.74543132]
[1760677098835,0.001,3925.2,3925.1,13.18973132]
[1760677104057,0.001,3925.2,3925.1,12.74543132]
[1760677104227,0.001,3925.2,3925.1,12.55483132]
[1760677108942,0.4298,3925.2,3925.1,12.42763132]
[1760677109178,0.4298,3925.2,3925.1,9.24632553]
[1760677109470,0.4298,3925.2,3925.1,10.65917064]
[1760677109780,0.4298,3925.2,3925.1,11.29277064]
[1760677110074,0.4298,3925.2,3925.1,8.74506485]
[1760677110374,0.001,3925.2,3925.1,11.29277064]
[1760677110544,0.001,3925.2,3925.1,12.67702398]
[1760677110750,0.001,3925.2,3925.1,13.44412398]
[1760677110947,0.001,3925.2,3925.1,12.99482398]
[1760677111472,0.001,3925.2,3925.1,13.44412398]
[1760677111789,0.001,3925.2,3925.1,12.99482398]
[1760677112078,0.001,3925.2,3925.1,12.80422398]
[1760677113862,0.001,3925.2,3925.1,13.25352398]
[1760677114262,0.001,3925.2,3925.1,13.44412398]
[1760677114749,0.001,3925.2,3925.1,12.99482398]
[1760677115187,0.001,3925.2,3925.1,13.44412398]
[1760677116193,0.001,3925.2,3925.1,12.99482398]
[1760677116963,0.001,3925.2,3925.1,12.80422398]
[1760677119894,0.001,3925.2,3925.1,12.99482398]
[1760677120205,0.001,3925.2,3925.1,13.44412398]
[1760677120961,0.001,3925.2,3925.1,12.99482398]
[1760677121166,0.001,3925.2,3925.1,12.80422398]
[1760677124090,0.001,3925.2,3925.1,13.44412398]
[1760677124268,0.001,3925.2,3925.1,12.99482398]
[1760677124596,0.001,3925.2,3925.1,13.44412398]
[1760677126302,0.001,3925.2,3925.1,12.80422398]
[1760677126804,0.001,3925.2,3925.1,13.25352398]
[1760677127504,0.001,3925.2,3925.1,13.44412398]
[1760677128607,0.001,3925.2,3925.1,12.80422398]
[1760677129515,0.4298,3925.2,3925.1,12.67702398]
[1760677130078,0.001,3925.2,3925.1,12.67702398]
[1760677142645,0.001,3925.2,3925.1,13.12962398]
[1760677142950,0.001,3925.6,3925.5,4.90904618]
[1760677143241,0.001,3925.6,3925.5,10.52639678]
[1760677143410,0.4298,3925.6,3925.5,10.52639678]
[1760677143603,0.4298,3925.6,3925.5,11.29253451]
[1760677149210,0.4298,3925.6,3925.5,3.12773773]
[1760677152026,0.4298,3925.6,3925.5,5.67518391]
[1760677153311,0.4298,3925.6,3925.5,7.80842262]
[1760677153538,0.4298,3925.6,3925.5,6.40868489]
[1760677155926,0.4298,3925.6,3925.5,1.728]
[1760677156112,0.4298,3925.6,3925.5,6.40868489]
[1760677156743,0.4298,3925.6,3925.2,4.68068489]
[1760677156921,0.4288,3925.5,3925.3,5.44694982]
[1760677157131,3.0028,3925.4,3925.3,5.44694982]
[1760677159418,3.0028,3925.4,3925.3,7.9945258]
[1760677159419,2.574,3925.4,3925.3,7.9945258]
[1760677159757,2.574,3925.4,3925.3,3.31384091]
[1760677164842,3.0038,3925.4,3925.3,0.76626493]
[1760677168573,3.0038,3925.4,3925.2,4.68068489]
[1760677168785,0.4288,3925.3,3925.2,5.44696743]
[1760677170141,2.575,3925.4,3925.2,5.44696743]
[1760677170976,0.4288,3925.3,3925.2,5.44696743]
[1760677173974,0.72928,3925.3,3925.2,0.76628254]
[1760677174174,0.72928,3925.3,3925.1,0.002]
[1760677174480,1.12895614,3925.3,3925.1,0.002]
[1760677175045,1.12895614,3925.3,3925.2,4.68068489]
[1760677175247,0.82847614,3925.3,3925.2,4.68068489]
[1760677177177,0.39967614,3925.3,3925.2,4.68068489]
[1760677178771,0.82847614,3925.3,3925.2,4.68068489]
[1760677181788,0.39967614,3925.3,3925.2,4.68068489]
[1760677183184,2.575,3925.3,3925.2,5.12798489]
[1760677183481,2.575,3925.3,3925.2,8.44188482]
[1760677183654,2.575,3925.3,3925.2,7.99458482]
[1760677184055,2.575,3925.3,3925.2,12.67526971]
[1760677184255,2.575,3925.3,3925.2,3.31389993]
[1760677184455,2.575,3925.3,3925.2,8.44188482]
[1760677184688,2.575,3925.3,3925.2,4.68068489]
[1760677186382,3.0038,3925.3,3925.2,4.68068489]
[1760677187052,2.575,3925.3,3925.2,4.68068489]
[1760677189989,2.575,3925.3,3925.2,5.12798489]
[1760677190181,2.575,3925.3,3925.2,4.68068489]
[1760677190571,3.30146692,3925.3,3925.1,0.002]
[1760677190760,19.380682,3925.2,3925.1,0.002]
[1760677190963,19.48288328,3925.2,3925.1,0.002]
[1760677191182,19.91168328,3925.2,3925.1,0.002]
[1760677191369,22.41183954,3925.2,3925.1,0.002]
[1760677191555,22.41183954,3925.2,3924.8,0.002]
[1760677191556,31.728,3925.1,3924.8,0.002]
[1760677191758,39.1791205,3924.9,3924.8,0.002]
[1760677192174,39.6102205,3924.9,3924.8,0.002]
[1760677192656,39.73516975,3924.9,3924.8,0.002]
[1760677192858,42.23532601,3924.9,3924.8,0.002]
[1760677193110,42.86892601,3924.9,3924.8,0.002]
[1760677193395,37.42969187,3924.9,3924.8,0.002]
[1760677193693,41.15469187,3924.9,3924.8,0.002]
[1760677195569,41.20469187,3924.9,3924.8,0.002]
[1760677196397,37.47969187,3924.9,3924.8,0.002]
[1760677196571,41.20469187,3924.9,3924.8,0.002]
[1760677197899,37.47969187,3924.9,3924.8,0.002]
[1760677198103,41.20469187,3924.9,3924.8,0.002]
[1760677199000,41.20469187,3924.9,3923.5,0.002]
[1760677199001,32.3616,3924.8,3923.5,0.002]
[1760677199314,32.3616,3924.8,3920.9,0.1783]
[1760677199315,3.736299,3921.8,3921.2,0.183]
[1760677199487,0.29766692,3921.7,3921.5,4.68068489]
[1760677199693,0.4250543,3921.9,3921.6,0.4311]
[1760677200003,4.672102,3921.7,3921.6,0.4311]
[1760677200194,3.493202,3921.7,3920.8,0.183]
[1760677200392,3.493202,3921.7,3921.1,0.183]
[1760677200916,0.4250543,3921.9,3921.6,4.68068489]
[1760677201102,0.4250543,3921.9,3921.7,0.45719914]
[1760677201103,0.02496476,3921.9,3921.7,0.45719914]
[1760677201411,0.02496476,3921.9,3921.8,0.6336]
[1760677201712,0.76689959,3923.4,3922.0,4.91129982]
[1760677202030,0.76689959,3923.4,3921.7,2.1597]
[1760677202031,2.597,3923.3,3922.9,4.68068489]
[1760677202208,3.521577,3923.1,3922.2,0.6336]
[1760677202521,0.72429539,3923.2,3922.2,0.6336]
[1760677202522,2.22015,3923.2,3923.0,4.68068489]
[1760677203199,2.22015,3923.2,3923.0,4.28085389]
[1760677203399,2.22015,3923.2,3922.5,0.4317]
[1760677203578,2.22015,3923.2,3922.1,0.6147]
[1760677203774,2.74186039,3923.2,3922.1,0.6147]
[1760677203979,15.233882,3923.0,3922.1,0.183]
[1760677204206,10.426903,3922.8,3922.1,0.183]
[1760677204405,9.870726,3922.8,3922.1,0.183]
[1760677204580,4.630312,3922.8,3922.1,0.6147]
[1760677204774,2.04815,3922.8,3922.1,0.6147]
[1760677204972,0.39995325,3923.0,3922.3,0.6336]
[1760677205197,2.6,3922.9,3922.4,0.4317]
[1760677205407,5.316296,3922.8,3921.8,0.4337]
[1760677205582,13.116917,3922.7,3921.8,0.002]
[1760677205773,8.184586,3922.6,3921.8,0.002]
[1760677205974,9.236899,3922.4,3921.8,0.002]
[1760677206298,1.26559074,3922.4,3921.8,0.002]
[1760677206504,8.255184,3922.4,3921.8,0.002]
[1760677206811,11.993773,3922.2,3921.8,0.002]
[1760677206982,2.601,3922.1,3921.8,0.002]
[1760677207183,2.809,3922.0,3921.8,0.002]
[1760677207731,5.040129,3921.9,3921.8,0.002]
[1760677208024,6.2750819,3921.9,3921.8,0.002]
[1760677208224,0.8059129,3921.9,3921.8,0.002]
[1760677208430,0.40006934,3922.0,3921.8,0.002]
[1760677210269,32.60004462,3921.5,3921.4,0.002]
[1760677210541,36.93204462,3921.5,3921.4,0.002]
[1760677210715,37.35004462,3921.5,3921.4,0.002]
[1760677210916,40.25039134,3921.5,3921.4,0.002]
[1760677211731,40.88399134,3921.5,3921.4,0.002]
[1760677212105,40.83399134,3921.5,3921.4,0.002]
[1760677212309,40.25039134,3921.5,3921.4,0.002]
[1760677212529,40.35270425,3921.5,3921.4,0.002]
[1760677214613,40.35270425,3921.5,3919.9,0.4317]
[1760677214614,0.05,3919.7,3917.1,0.006]
[1760677214921,0.1333,3918.8,3917.9,0.4317]
[1760677215136,0.1333,3918.8,3918.7,0.1783]
[1760677215327,0.1333,3918.8,3918.7,1.2436]
[1760677215661,0.1333,3918.8,3918.7,2.9716]
[1760677215948,0.1333,3918.8,3918.7,6.0783658]
[1760677216146,1.214,3920.1,3919.5,0.6336]
[1760677216333,1.214,3920.1,3919.3,0.185]
[1760677216513,1.214,3920.1,3919.4,0.4317]
[1760677218113,1.214,3920.1,3919.5,0.6336]
[1760677218314,1.214,3920.1,3919.7,0.6336]
[1760677218644,0.40032262,3920.2,3919.8,0.4317]
[1760677218845,0.40032262,3920.2,3920.1,0.183]
[1760677219446,0.40032262,3920.2,3920.1,0.6147]
[1760677220815,0.40032262,3920.2,3920.1,0.183]
[1760677221771,0.40032262,3920.2,3919.7,0.4317]
[1760677223147,0.40032262,3920.2,3919.4,0.6336]
[1760677223320,0.40032262,3920.2,3919.5,0.77441]
[1760677223750,2.608,3920.6,3920.1,0.183]
[1760677224047,2.608,3920.6,3920.2,0.4725]
[1760677224237,2.608,3920.6,3920.3,0.4725]
[1760677224433,2.608,3920.6,3920.4,0.4725]
[1760677224636,0.1811,3920.5,3919.4,0.0255141]
[1760677224841,2.511125,3920.5,3919.6,0.6336]
[1760677225024,2.608,3920.6,3919.6,0.93551]
[1760677225223,2.608,3920.6,3919.7,0.4725]
[1760677226753,3.00818988,3920.6,3919.7,0.4725]
[1760677226924,3.16358,3920.5,3919.7,0.4725]
[1760677227722,3.16358,3920.5,3919.5,0.6336]
[1760677228020,2.609,3920.4,3919.5,0.6336]
[1760677229048,2.609,3920.4,3919.5,3.18494494]
[1760677229236,2.609,3920.4,3919.6,0.4725]
[1760677229436,0.40018988,3920.6,3919.6,0.4725]
[1760677229730,6.571157,3920.5,3919.6,0.4725]
[1760677229930,2.608,3920.5,3919.6,0.4725]
[1760677230130,2.608,3920.5,3919.6,0.85674449]
[1760677230533,2.608,3920.5,3919.6,0.4725]
[1760677231156,2.608,3920.5,3919.7,0.6336]
[1760677231368,2.608,3920.5,3919.8,0.4725]
[1760677232761,3.0323,3920.5,3919.6,0.6336]
[1760677233124,6.802142,3920.4,3919.5,0.6336]
[1760677233529,4.190281,3920.4,3919.5,0.6336]
[1760677233766,10.918046,3920.2,3918.6,0.002]
[1760677233927,6.00701,3920.0,3918.7,0.6508]
[1760677234125,0.40022578,3920.2,3918.8,3.18540157]
[1760677234126,0.6455,3919.9,3918.8,3.18540157]
[1760677234647,0.6455,3919.9,3919.0,2.3616]
[1760677234995,0.6455,3919.9,3919.0,3.18524804]
[1760677235166,0.40022578,3920.2,3919.1,0.185]
[1760677235334,0.40022578,3920.2,3919.0,1.74488494]
[1760677235335,0.6455,3919.8,3919.0,0.6336]
[1760677235663,2.606,3919.7,3919.0,0.6336]
[1760677235860,3.0351,3919.7,3918.7,0.1783]
[1760677236034,3.0351,3919.7,3918.8,0.6336]
[1760677236431,2.606,3919.7,3918.9,2.551678]
[1760677236634,2.606,3919.7,3918.9,3.024178]
[1760677236831,2.606,3919.7,3918.9,0.4725]
[1760677237029,2.606,3919.7,3919.0,0.6336]
[1760677237248,2.606,3919.7,3919.1,3.20910499]
[1760677237445,2.606,3919.7,3919.1,0.6575]
[1760677238769,2.606,3919.7,3919.2,0.6336]
[1760677239073,2.606,3919.7,3919.2,1.1061]
[1760677240174,2.606,3919.7,3918.8,0.002]
[1760677240175,0.2163,3919.3,3918.8,0.002]
[1760677240350,6.223798,3918.7,3918.4,0.002]
[1760677240552,3.2363798,3918.7,3918.4,0.002]
[1760677240741,6.65570915,3918.7,3918.4,0.002]
[1760677240944,7.08490915,3918.7,3918.4,0.002]
[1760677241445,7.03780615,3918.7,3918.4,0.002]
[1760677242460,9.09951015,3918.7,3918.4,0.002]
[1760677243474,12.19842715,3918.7,3918.4,0.002]
[1760677243679,13.41826987,3918.7,3918.4,0.002]
[1760677243876,13.10913387,3918.7,3918.4,0.002]
[1760677244077,3.01440415,3918.7,3918.4,0.002]
[1760677245481,0.1333,3919.2,3918.6,0.4745]